bitfinex-derivatives/quotes_BNBF0:USTF0_20250510
["timestamp","ask_amount","ask_price","bid_price","bid_amount"]
[1746897797511,0.30456234,656.68,656.14,1.89465041]
[1746897797709,0.30456234,656.68,656.15,0.71226896]
[1746897797905,0.30456234,656.68,656.16,0.71226896]
[1746897798106,0.30456234,656.68,656.17,1.89465041]
[1746897798306,0.30456234,656.68,656.18,0.71226896]
[1746897798505,0.30456234,656.68,656.19,0.71226896]
[1746897798709,0.30456234,656.68,656.2,0.71226896]
[1746897798908,0.30456234,656.68,656.21,0.71226896]
[1746897799108,0.30456234,656.68,656.22,0.71226896]
[1746897799310,0.30456234,656.68,656.23,0.71226896]
[1746897799515,0.30456234,656.68,656.24,1.89465041]
[1746897799812,0.30456234,656.68,656.25,0.71226896]
[1746897800008,0.30456234,656.68,656.26,0.71226896]
[1746897800208,0.30456234,656.68,656.27,1.89465041]
[1746897800508,0.30456234,656.68,656.28,0.71226896]
[1746897800813,0.30456234,656.68,656.29,0.71226896]
[1746897801010,0.30456234,656.68,656.3,0.71226896]
[1746897801313,0.30456234,656.68,656.31,0.71226896]
[1746897801514,0.30456234,656.68,656.32,1.89465041]
[1746897801715,0.30456234,656.68,656.33,0.71226896]
[1746897801914,0.30456234,656.68,656.34,1.89465041]
[1746897802115,0.30456234,656.68,656.35,1.89465041]
[1746897802316,0.30456234,656.68,656.36,0.71226896]
[1746897802514,0.30456234,656.68,656.37,0.71264058]
[1746897802713,0.30456234,656.68,656.38,0.71264058]
[1746897802915,0.30456234,656.68,656.39,0.71264058]
[1746897803116,0.30456234,656.68,656.4,0.71264058]
[1746897803318,0.30456234,656.68,656.41,0.71264058]
[1746897803516,0.30456234,656.68,656.42,0.71264058]
[1746897803717,0.30456234,656.68,656.43,1.89502203]
[1746897803911,0.30456234,656.68,656.44,0.71264058]
[1746897804211,0.30456234,656.68,656.45,1.89502203]
[1746897804410,0.30456234,656.68,656.46,0.71264058]
[1746897804616,0.30456234,656.68,656.47,1.89502203]
[1746897804815,0.30456234,656.68,656.48,0.71264058]
[1746897805015,0.30456234,656.68,656.49,0.71264058]
[1746897805216,0.30456234,656.68,656.5,0.71264058]
[1746897805418,0.30456234,656.68,656.51,0.71264058]
[1746897805612,0.30456234,656.68,656.52,0.71264058]
[1746897805816,0.30456234,656.68,656.53,0.71264058]
[1746897806016,0.30456234,656.68,656.54,0.71264058]
[1746897806216,0.30456234,656.68,656.55,1.89502203]
[1746897806412,0.30456234,656.68,656.56,0.71264058]
[1746897806617,0.30456234,656.68,656.55,1.18238145]
[1746897806618,0.30456234,656.68,656.57,0.71264058]
[1746897806817,0.30456234,656.68,656.58,0.71264058]
[1746897807118,0.30456234,656.68,656.59,1.89502203]
[1746897807318,0.30456234,656.68,656.6,0.71264058]
[1746897807512,0.30456234,656.68,656.61,0.71264058]
[1746897807711,0.30456234,656.68,656.62,1.89502203]
[1746897807911,0.30456234,656.68,656.63,0.71187114]
[1746897808118,0.30456234,656.68,656.64,0.71187114]
[1746897808319,0.30456234,656.68,656.65,0.71187114]
[1746897808519,0.30456234,656.68,656.65,1.18238145]
[1746897809021,0.30456234,656.68,656.66,1.18238145]
[1746897809720,0.30456234,656.68,656.67,1.18238145]
[1746897822032,0.30456234,656.68,656.67,1.8932114]
[1746897822332,0.30456234,656.68,656.67,1.89326924]
[1746897826032,0.30456234,656.68,656.67,1.89326597]
[1746897827831,0.30456234,656.68,656.67,1.89331296]
[1746897828230,0.30456234,656.68,656.67,1.18238145]
[1746897828733,0.30456234,656.68,656.67,1.89330445]
[1746897829529,0.30456234,656.68,656.67,1.89327054]
[1746897833138,0.30456234,656.68,656.67,1.89289921]
[1746897834937,0.30456234,656.68,656.67,1.18238145]
[1746897835135,0.30456234,656.68,656.67,1.89298688]
[1746897836841,0.30456234,656.68,656.67,1.89539096]
[1746897838637,0.30456234,656.68,656.67,1.89512608]
[1746897840437,0.30456234,656.68,656.67,1.89511992]
[1746897844344,0.30456234,656.68,656.67,1.89492688]
[1746897860954,0.30456234,656.68,656.67,1.894944]
[1746897863750,0.30456234,656.68,656.67,1.18238145]
[1746897863956,0.30456234,656.68,656.67,1.8967423]
[1746897865052,0.30456234,656.68,656.67,1.18238145]
[1746897865258,0.30456234,656.68,656.67,1.89486493]
[1746897865664,0.30456234,656.68,656.67,1.89488295]
[1746897875963,0.30456234,656.68,656.67,1.89457069]
[1746897876458,0.30456234,656.68,656.67,1.18238145]
[1746897878064,0.30456234,656.68,655.76,0.9657312]
[1746897878265,0.30456234,656.68,655.77,0.99269114]
[1746897878467,0.30456234,656.68,655.78,0.71281393]
[1746897878666,0.30456234,656.68,655.79,1.89886427]
[1746897878868,0.30456234,656.68,655.8,0.71281393]
[1746897879060,0.30456234,656.68,655.81,0.71281393]
[1746897879365,0.30456234,656.68,655.82,0.71281393]
[1746897879565,0.30456234,656.68,655.83,0.71281393]
[1746897879766,0.30456234,656.68,655.84,0.71281393]
[1746897879966,0.30456234,656.68,655.85,0.71281393]
[1746897880160,0.30456234,656.68,655.86,0.71281393]
[1746897880360,0.30456234,656.68,655.87,1.89886427]
[1746897880565,0.30456234,656.68,655.88,0.71281393]
[1746897880764,0.30456234,656.68,655.89,0.71281393]
[1746897880967,0.30456234,656.68,655.9,0.71281393]
[1746897881168,0.30456234,656.68,655.91,0.71281393]
[1746897881362,0.30456234,656.68,655.92,1.89886427]
[1746897881567,0.30456234,656.68,655.93,0.71281393]
[1746897881867,0.30456234,656.68,655.94,0.71281393]
[1746897882068,0.30456234,656.68,655.95,0.71281393]
[1746897882269,0.30456234,656.68,655.96,0.71247198]
[1746897882469,0.30456234,656.68,655.97,0.71247198]
[1746897882669,0.30456234,656.68,655.98,1.89852232]
[1746897882864,0.30456234,656.68,655.99,0.71247198]
[1746897883069,0.30456234,656.68,655.79,0.26502675]
[1746897883070,0.30456234,656.68,656.0,1.89852232]
[1746897883268,0.30456234,656.68,656.01,0.71247198]
[1746897883469,0.30456234,656.68,656.02,0.71247198]
[1746897883771,0.30456234,656.68,656.03,0.71238478]
[1746897883972,0.30456234,656.68,656.04,0.71238478]
[1746897884165,0.30456234,656.68,656.05,1.89843512]
[1746897884369,0.30456234,656.68,656.06,0.71238478]
[1746897884567,0.30456234,656.68,656.07,0.71238478]
[1746897884765,0.30456234,656.68,656.08,1.89843512]
[1746897884969,0.30456234,656.68,656.09,0.71238478]
[1746897885171,0.30456234,656.68,656.1,0.71238478]
[1746897885373,0.30456234,656.68,655.79,0.26502675]
[1746897885374,0.30456234,656.68,656.11,1.89843512]
[1746897885567,0.30456234,656.68,656.12,0.71223462]
[1746897885871,0.30456234,656.68,655.79,0.26502675]
[1746897885872,0.30456234,656.68,656.13,1.89828496]
[1746897886073,0.30456234,656.68,656.14,0.71223462]
[1746897886269,0.30456234,656.68,656.15,0.71223462]
[1746897886574,0.30456234,656.68,656.16,1.89828496]
[1746897886774,0.30456234,656.68,656.17,0.71223462]
[1746897887070,0.30456234,656.68,656.18,0.71223462]
[1746897887374,0.30456234,656.68,656.19,0.71223462]
[1746897887572,0.30456234,656.68,656.2,0.71223462]
[1746897887772,0.30456234,656.68,656.21,1.89828496]
[1746897887973,0.30456234,656.68,656.22,0.71223462]
[1746897888171,0.30456234,656.68,656.23,0.71223462]
[1746897888370,0.30456234,656.68,656.24,1.89828496]
[1746897888573,0.30456234,656.68,656.25,0.71223462]
[1746897888774,0.30456234,656.68,656.26,0.71223462]
[1746897888975,0.30456234,656.68,656.27,0.71223462]
[1746897889174,0.30456234,656.68,656.28,0.71223462]
[1746897889378,0.30456234,656.68,656.29,0.71223462]
[1746897889576,0.30456234,656.68,656.3,0.71223462]
[1746897889777,0.30456234,656.68,656.31,0.71223462]
[1746897889977,0.30456234,656.68,656.32,0.71223462]
[1746897890180,0.30456234,656.68,656.33,0.71223462]
[1746897890378,0.30456234,656.68,656.34,1.89828496]
[1746897890578,0.30456234,656.68,656.35,0.71223462]
[1746897890779,0.30456234,656.68,656.36,0.71223462]
[1746897890980,0.30456234,656.68,656.37,0.71223462]
[1746897891279,0.30456234,656.68,656.38,0.71223462]
[1746897891472,0.30456234,656.68,656.39,0.71223462]
[1746897891672,0.30456234,656.68,656.4,0.71223462]
[1746897891877,0.30456234,656.68,656.41,0.71223462]
[1746897892074,0.30456234,656.68,656.42,1.89828496]
[1746897892279,0.30456234,656.68,656.43,0.71136846]
[1746897892579,0.30456234,656.68,656.44,1.18605034]
[1746897892874,0.30456234,656.68,656.45,1.18605034]
[1746897893275,0.30456234,656.68,656.46,1.18605034]
[1746897894173,0.30456234,656.68,656.47,1.18605034]
[1746897894574,0.30456234,656.68,656.48,1.18605034]
[1746897894979,0.30456234,656.68,656.49,1.18605034]
[1746897895275,0.30456234,656.68,655.47,0.9657312]
[1746897895478,0.30456234,656.68,655.48,0.71114861]
[1746897895679,0.30456234,656.68,655.49,1.89413578]
[1746897895873,0.30456234,656.68,655.5,0.71114861]
[1746897896073,0.30456234,656.68,655.51,0.71112485]
[1746897896279,0.30456234,656.68,655.49,1.46290018]
[1746897896280,0.30456234,656.68,655.52,0.71112485]
[1746897896574,0.30456234,656.68,655.53,0.71112485]
[1746897896780,0.30456234,656.68,655.54,1.89411202]
[1746897897083,0.30456234,656.68,655.55,0.99103786]
[1746897897278,0.30456234,656.68,655.56,1.89411202]
[1746897897483,0.30456234,656.68,655.57,0.71112485]
[1746897897682,0.30456234,656.68,655.58,0.71112485]
[1746897897984,0.30456234,656.68,655.59,1.89411202]
[1746897898184,0.30456234,656.68,655.6,0.71112485]
[1746897898478,0.30456234,656.68,655.61,1.89411202]
[1746897898680,0.30456234,656.68,655.62,0.71112485]
[1746897898878,0.30456234,656.68,655.63,1.89411202]
[1746897899084,0.30456234,656.68,655.64,1.89411202]
[1746897899383,0.30456234,656.68,655.65,0.71112485]
[1746897899581,0.30456234,656.68,655.66,0.71112485]
[1746897899780,0.30456234,656.68,655.67,1.89411202]
[1746897899980,0.30456234,656.68,655.68,0.71112485]
[1746897900183,0.30456234,656.68,655.69,0.71112485]
[1746897900382,0.30456234,656.68,655.7,0.71112485]
[1746897900583,0.30456234,656.68,655.71,0.71112485]
[1746897900784,0.30456234,656.68,655.72,2.17402503]
[1746897900985,0.30456234,656.68,655.73,0.71083238]
[1746897901185,0.30456234,656.68,655.74,1.89381955]
[1746897901380,0.30456234,656.68,655.75,0.71083238]
[1746897901684,0.30456234,656.68,655.76,0.71083238]
[1746897901885,0.30456234,656.68,655.77,0.71083238]
[1746897902081,0.30456234,656.68,655.78,0.71083238]
[1746897902285,0.30456234,656.68,655.79,0.71083238]
[1746897902481,0.30456234,656.68,655.8,0.71083238]
[1746897902683,0.30456234,656.68,655.81,1.89381955]
[1746897902887,0.30456234,656.68,655.82,0.71083238]
[1746897903089,0.30456234,656.68,655.83,1.89381955]
[1746897903288,0.30456234,656.68,655.84,0.71083238]
[1746897903489,0.30456234,656.68,655.85,0.71083238]
[1746897903690,0.30456234,656.68,655.86,1.89381955]
[1746897903889,0.30456234,656.68,655.87,0.71083238]
[1746897904190,0.30456234,656.68,655.88,1.89381955]
[1746897904489,0.30456234,656.68,655.89,0.71078592]
[1746897904688,0.30456234,656.68,655.9,0.71078592]
[1746897904884,0.30456234,656.68,655.91,0.71078592]
[1746897905091,0.30456234,656.68,655.92,0.71078592]
[1746897905388,0.30456234,656.68,655.93,0.71078592]
[1746897905589,0.30456234,656.68,655.94,1.89377309]
[1746897905789,0.30456234,656.68,655.95,0.71078592]
[1746897906089,0.30456234,656.68,655.96,1.89377309]
[1746897906289,0.30456234,656.68,655.97,0.71066109]
[1746897906489,0.30456234,656.68,655.98,1.89364826]
[1746897906791,0.30456234,656.68,655.99,0.71066109]
[1746897907091,0.30456234,656.68,656.0,1.89364826]
[1746897907290,0.30456234,656.68,656.01,1.89364826]
[1746897907491,0.30456234,656.68,656.02,0.71066109]
[1746897907689,0.30456234,656.68,656.03,0.71066109]
[1746897907888,0.30456234,656.68,656.04,0.71066109]
[1746897908089,0.30456234,656.68,656.05,0.71066109]
[1746897908284,0.30456234,656.68,656.06,0.71066109]
[1746897908489,0.30456234,656.68,656.07,1.89364826]
[1746897908784,0.30456234,656.68,656.08,0.71066109]
[1746897908986,0.30456234,656.68,656.09,1.89364826]
[1746897909288,0.30456234,656.68,656.1,0.71066109]
[1746897909485,0.30456234,656.68,656.11,0.71066109]
[1746897909689,0.30456234,656.68,656.12,0.71066109]
[1746897909889,0.30456234,656.68,656.13,0.71066109]
[1746897910191,0.30456234,656.68,656.14,0.71066109]
[1746897910491,0.30456234,656.68,656.15,1.89364826]
[1746897910691,0.30456234,656.68,656.16,0.71066109]
[1746897910890,0.30456234,656.68,656.17,1.89364826]
[1746897911089,0.30456234,656.68,656.18,0.71066109]
[1746897911285,0.30456234,656.68,656.19,0.71066109]
[1746897911489,0.30456234,656.68,656.2,1.89364826]
[1746897911690,0.30456234,656.68,656.21,0.71066109]
[1746897911989,0.30456234,656.68,656.22,0.71066109]
[1746897912187,0.30456234,656.68,656.23,1.89364826]
[1746897912387,0.30456234,656.68,656.24,0.71066109]
[1746897912588,0.30456234,656.68,656.25,0.71066109]
[1746897912787,0.30456234,656.68,656.26,0.71066109]
[1746897913089,0.30456234,656.68,656.27,0.71066109]
[1746897913395,0.30456234,656.68,656.27,1.18298717]
[1746897913695,0.30456234,656.68,656.28,1.18298717]
[1746897914395,0.30456234,656.68,656.29,1.18298717]
[1746897914795,0.30456234,656.68,655.5,0.9657312]
[1746897914995,0.30456234,656.68,655.51,0.71007093]
[1746897915197,0.30456234,656.68,655.52,1.89122376]
[1746897915394,0.30456234,656.68,655.53,0.71007093]
[1746897915593,0.30456234,656.68,655.54,1.89122376]
[1746897915795,0.30456234,656.68,655.55,0.71007093]
[1746897915995,0.30456234,656.68,655.56,0.71007093]
[1746897916196,0.30456234,656.68,655.57,1.89122376]
[1746897916397,0.30456234,656.68,655.58,0.71007093]
[1746897916695,0.30456234,656.68,655.59,1.89122376]
[1746897916994,0.30456234,656.68,655.6,0.71007093]
[1746897917196,0.30456234,656.68,655.61,2.17120255]
[1746897917496,0.30456234,656.68,655.62,2.17120255]
[1746897917696,0.30456234,656.68,655.63,0.71007093]
[1746897917897,0.30456234,656.68,655.64,0.71007093]
[1746897918196,0.30456234,656.68,655.65,0.71007093]
[1746897918395,0.30456234,656.68,655.66,0.71007093]
[1746897918597,0.30456234,656.68,655.67,0.71007093]
[1746897918799,0.30456234,656.68,655.68,0.71007093]
[1746897919092,0.30456234,656.68,655.69,1.88881063]
[1746897919297,0.30456234,656.68,655.7,1.88881063]
[1746897919498,0.30456234,656.68,655.71,0.70938911]
[1746897919695,0.30456234,656.68,655.72,0.70938911]
[1746897919893,0.30456234,656.68,655.73,0.70938911]
[1746897920093,0.30456234,656.68,655.74,0.70938911]
[1746897920304,0.30456234,656.68,655.75,0.70938911]
[1746897920499,0.30456234,656.68,655.76,0.70938911]
[1746897920700,0.30456234,656.68,655.77,0.70938911]
[1746897920994,0.30456234,656.68,655.78,0.71191033]
[1746897921197,0.30456234,656.68,655.79,0.71191033]
[1746897921393,0.30456234,656.68,655.8,0.71191033]
[1746897921699,0.30456234,656.68,655.78,1.17942152]
[1746897921700,0.30456234,656.68,655.81,1.89133185]
[1746897921894,0.30456234,656.68,655.82,0.71191033]
[1746897922095,0.30456234,656.68,655.83,0.71191033]
[1746897922294,0.30456234,656.68,655.84,0.71191033]
[1746897922593,0.30456234,656.68,655.85,0.71191033]
[1746897922797,0.30456234,656.68,655.86,0.71220446]
[1746897923097,0.30456234,656.68,655.87,1.89162598]
[1746897923296,0.30456234,656.68,655.88,1.89162598]
[1746897923499,0.30456234,656.68,655.89,0.71220446]
[1746897923700,0.30456234,656.68,655.9,0.71220446]
[1746897923896,0.30456234,656.68,655.91,1.89162598]
[1746897924202,0.30456234,656.68,655.92,0.71220446]
[1746897924401,0.30456234,656.68,655.93,0.71220446]
[1746897924701,0.30456234,656.68,655.94,0.71255304]
[1746897925000,0.30456234,656.68,655.95,1.89197456]
[1746897925194,0.30456234,656.68,655.96,0.71255304]
[1746897925398,0.30456234,656.68,655.97,1.89197456]
[1746897925698,0.30456234,656.68,655.98,0.71255304]
[1746897925898,0.30456234,656.68,655.99,1.89197456]
[1746897926097,0.30456234,656.68,656.0,0.71255304]
[1746897926297,0.30456234,656.68,656.01,1.89197456]
[1746897926501,0.30456234,656.68,656.02,0.71317586]
[1746897926698,0.30456234,656.68,656.03,0.71317586]
[1746897926896,0.30456234,656.68,656.04,0.71317586]
[1746897927101,0.30456234,656.68,656.05,0.71317586]
[1746897927300,0.30456234,656.68,656.06,0.71317586]
[1746897927502,0.30456234,656.68,656.07,1.89259738]
[1746897927703,0.30456234,656.68,656.08,0.71317586]
[1746897928004,0.30456234,656.68,656.09,1.89259738]
[1746897928204,0.30456234,656.68,656.1,0.71317586]
[1746897928401,0.30456234,656.68,656.11,0.71317586]
[1746897928603,0.30456234,656.68,656.12,0.71317586]
[1746897928797,0.30456234,656.68,656.13,0.71317586]
[1746897929004,0.30456234,656.68,656.14,1.89259738]
[1746897929205,0.30456234,656.68,656.15,0.71317586]
[1746897929405,0.30456234,656.68,656.15,1.17942152]
[1746897930002,0.26513276,656.67,655.07,0.9657312]
[1746897930205,0.30457625,656.65,655.08,0.71257198]
[1746897930406,0.30457625,656.65,655.09,1.89484375]
[1746897930606,0.26175241,656.64,655.1,0.71257198]
[1746897930803,0.26175241,656.64,655.11,0.71257198]
[1746897931105,0.30459017,656.62,655.12,1.89484375]
[1746897931302,0.30459017,656.62,655.13,0.71257198]
[1746897931501,0.30459017,656.62,655.14,0.71257198]
[1746897931704,0.30459017,656.62,655.15,0.71257198]
[1746897932004,0.26175241,656.61,655.16,2.17495061]
[1746897932204,0.30460409,656.59,655.17,0.7120723]
[1746897932405,0.30460409,656.59,655.18,0.7120723]
[1746897932605,0.26175241,656.58,655.19,0.99217916]
[1746897932806,0.304618,656.56,655.2,0.7120723]
[1746897933004,0.304618,656.56,655.21,0.7120723]
[1746897933205,0.304618,656.56,655.22,0.7120723]
[1746897933504,0.304618,656.56,655.23,0.7120723]
[1746897933706,0.304618,656.56,655.24,0.7120723]
[1746897934005,0.304618,656.56,655.25,1.89434407]
[1746897934201,0.304618,656.56,655.26,0.7120723]
[1746897934402,0.304618,656.56,655.27,1.89434407]
[1746897934605,0.304618,656.56,655.28,1.89434407]
[1746897934808,0.304618,656.56,655.29,0.7120723]
[1746897935006,0.304618,656.56,655.3,0.7120723]
[1746897935204,0.304618,656.56,655.31,0.7120723]
[1746897935404,0.304618,656.56,655.32,0.7120723]
[1746897935607,0.304618,656.56,655.33,0.7120723]
[1746897935808,0.304618,656.56,655.34,1.18227177]
[1746897936011,0.304618,656.56,655.35,0.71159977]
[1746897936205,0.304618,656.56,655.36,0.71159977]
[1746897936409,0.304618,656.56,655.37,0.71159977]
[1746897936603,0.304618,656.56,655.38,0.71159977]
[1746897936805,0.304618,656.56,655.39,0.71159977]
[1746897937009,0.304618,656.56,655.4,0.71159977]
[1746897937213,0.304618,656.56,655.41,0.71159977]
[1746897937510,0.304618,656.56,655.42,1.89387154]
[1746897937710,0.304618,656.56,655.43,0.71159977]
[1746897937910,0.304618,656.56,655.44,0.71159977]
[1746897938107,0.304618,656.56,655.45,0.71159977]
[1746897938305,0.304618,656.56,655.46,0.71159977]
[1746897938513,0.304618,656.56,655.47,0.71159977]
[1746897938708,0.304618,656.56,655.48,1.89387154]
[1746897938906,0.304618,656.56,655.49,0.99170663]
[1746897939106,0.304618,656.56,655.5,0.71159977]
[1746897939411,0.304618,656.56,655.51,1.89387154]
[1746897939715,0.304618,656.56,655.52,1.89387154]
[1746897939913,0.304618,656.56,655.53,0.71159977]
[1746897940115,0.304618,656.56,655.54,2.1739784]
[1746897940307,0.304618,656.56,655.55,0.71159977]
[1746897940509,0.304618,656.56,655.56,0.71159977]
[1746897940707,0.304618,656.56,655.57,0.71159977]
[1746897940909,0.304618,656.56,655.58,0.71159977]
[1746897941108,0.304618,656.56,655.59,0.99170663]
[1746897941414,0.304618,656.56,655.6,0.99170663]
[1746897941714,0.304618,656.56,655.61,0.71159977]
[1746897941913,0.304618,656.56,655.62,0.71159977]
[1746897942113,0.304618,656.56,655.63,1.89387154]
[1746897942314,0.304618,656.56,655.64,0.71159977]
[1746897942515,0.304618,656.56,655.65,0.71090516]
[1746897942716,0.304618,656.56,655.66,0.71090516]
[1746897943016,0.304618,656.56,655.67,1.89317693]
[1746897943215,0.304618,656.56,655.68,0.71090516]
[1746897943411,0.304618,656.56,655.69,1.89318188]
[1746897943608,0.304618,656.56,655.7,0.71091011]
[1746897943814,0.304618,656.56,655.71,0.71091011]
[1746897944011,0.304618,656.56,655.72,0.71091011]
[1746897944214,0.304618,656.56,655.73,0.71091011]
[1746897944411,0.304618,656.56,655.74,1.89318188]
[1746897944617,0.304618,656.56,655.75,0.71091011]
[1746897944815,0.304618,656.56,655.76,0.71091011]
[1746897945013,0.304618,656.56,655.77,0.71091011]
[1746897945215,0.304618,656.56,655.78,1.89318188]
[1746897945416,0.304618,656.56,655.79,0.71091011]
[1746897945716,0.304618,656.56,655.8,1.89318188]
[1746897945920,0.304618,656.56,655.81,0.71091011]
[1746897946217,0.304618,656.56,655.82,0.71091011]
[1746897946418,0.304618,656.56,655.83,0.71091011]
[1746897946714,0.304618,656.56,655.84,1.89318188]
[1746897946917,0.304618,656.56,655.85,0.71091011]
[1746897947118,0.304618,656.56,655.86,0.71280611]
[1746897947318,0.304618,656.56,655.87,0.71280611]
[1746897947516,0.304618,656.56,655.88,1.89507788]
[1746897947717,0.304618,656.56,655.88,1.18227177]
[1746897947912,0.304618,656.56,655.89,1.8951644]
[1746897948113,0.304618,656.56,655.9,0.71289263]
[1746897948415,0.304618,656.56,655.91,1.8951644]
[1746897948614,0.304618,656.56,655.92,0.71289263]
[1746897948811,0.304618,656.56,655.93,1.8951644]
[1746897949019,0.304618,656.56,655.94,0.71294147]
[1746897949218,0.304618,656.56,655.95,0.71294147]
[1746897949419,0.304618,656.56,655.96,0.71294147]
[1746897949622,0.304618,656.56,655.97,0.71294147]
[1746897949919,0.304618,656.56,655.98,1.89521324]
[1746897950123,0.304618,656.56,655.99,1.89521324]
[1746897950321,0.304618,656.56,656.0,1.89521324]
[1746897950514,0.304618,656.56,656.01,0.71294147]
[1746897950718,0.304618,656.56,656.02,0.71294147]
[1746897950920,0.304618,656.56,656.03,0.71304784]
[1746897951119,0.304618,656.56,656.04,0.71304784]
[1746897951422,0.304618,656.56,656.05,1.89531961]
[1746897951722,0.304618,656.56,656.06,1.89531961]
[1746897951922,0.304618,656.56,656.07,0.71304784]
[1746897952120,0.304618,656.56,656.08,0.71304784]
[1746897952420,0.304618,656.56,656.09,0.71304784]
[1746897952620,0.304618,656.56,656.1,1.89531961]
[1746897952818,0.304618,656.56,656.11,0.71304784]
[1746897953016,0.304618,656.56,656.12,0.71304784]
[1746897953221,0.304618,656.56,656.13,0.70267339]
[1746897953422,0.304618,656.56,656.14,1.18227177]
[1746897953923,0.304618,656.56,656.15,1.18227177]
[1746897954422,0.304618,656.56,656.16,1.18227177]
[1746897955523,0.304618,656.56,656.17,1.18227177]
[1746897955924,0.304618,656.56,655.23,0.9657312]
[1746897956223,0.304618,656.56,655.24,0.70262771]
[1746897956425,0.304618,656.56,655.25,0.70262771]
[1746897956616,0.304618,656.56,655.26,2.16344751]
[1746897956821,0.304618,656.56,655.27,0.9826648]
[1746897957022,0.304618,656.56,655.28,0.70262771]
[1746897957324,0.304618,656.56,655.29,0.70262771]
[1746897957524,0.304618,656.56,655.3,2.16344751]
[1746897957723,0.304618,656.56,655.31,0.9826648]
[1746897957922,0.304618,656.56,655.32,0.9826648]
[1746897958124,0.304618,656.56,655.33,2.16344751]
[1746897958318,0.304618,656.56,655.34,0.70262771]
[1746897958519,0.304618,656.56,655.35,0.70262771]
[1746897958719,0.304618,656.56,655.36,0.70262771]
[1746897958923,0.304618,656.56,655.37,0.70262771]
[1746897959124,0.304618,656.56,655.34,0.28003709]
[1746897959125,0.304618,656.56,655.38,1.88341042]
[1746897959325,0.304618,656.56,655.39,0.70262771]
[1746897959525,0.304618,656.56,655.4,1.88341042]
[1746897959726,0.304618,656.56,655.41,0.70262771]
[1746897959927,0.304618,656.56,655.42,0.9826648]
[1746897960126,0.304618,656.56,655.43,0.70262771]
[1746897960321,0.304618,656.56,655.44,0.70262771]
[1746897960521,0.304618,656.56,655.45,1.88341042]
[1746897960721,0.304618,656.56,655.46,0.70262771]
[1746897961022,0.304618,656.56,655.47,0.9826648]
[1746897961227,0.304618,656.56,655.48,0.9826648]
[1746897961422,0.304618,656.56,655.49,1.88341042]
[1746897961621,0.304618,656.56,655.5,0.70262771]
[1746897961825,0.304618,656.56,655.51,1.88341042]
[1746897962021,0.304618,656.56,655.52,0.70262771]
[1746897962222,0.304618,656.56,655.53,0.70262771]
[1746897962423,0.304618,656.56,655.54,0.70262771]
[1746897962621,0.304618,656.56,655.55,0.70262771]
[1746897962827,0.304618,656.56,655.56,0.70262771]
[1746897963027,0.304618,656.56,655.57,0.70262771]
[1746897963231,0.304618,656.56,655.58,0.70262771]
[1746897963430,0.304618,656.56,655.59,1.88341042]
[1746897963631,0.304618,656.56,655.6,0.70262771]
[1746897963833,0.304618,656.56,655.61,1.88341042]
[1746897964026,0.304618,656.56,655.62,2.16344751]
[1746897964230,0.304618,656.56,655.63,0.70262771]
[1746897964533,0.304618,656.56,655.64,0.9826648]
[1746897964732,0.304618,656.56,655.65,2.16344751]
[1746897964932,0.304618,656.56,655.66,0.70262771]
[1746897965228,0.304618,656.56,655.67,0.70325292]
[1746897965431,0.304618,656.56,655.68,0.70325292]
[1746897965632,0.304618,656.56,655.69,1.88403563]
[1746897965833,0.304618,656.56,655.7,0.70325292]
[1746897966033,0.304618,656.56,655.71,0.70325292]
[1746897966235,0.304618,656.56,655.72,1.88403563]
[1746897966433,0.304618,656.56,655.73,0.70325292]
[1746897966631,0.304618,656.56,655.74,0.70325292]
[1746897966831,0.304618,656.56,655.75,0.70325292]
[1746897967030,0.304618,656.56,655.76,1.88403563]
[1746897967232,0.304618,656.56,655.77,0.70325292]
[1746897967429,0.304618,656.56,655.78,0.70325292]
[1746897967637,0.304618,656.56,655.79,0.70325292]
[1746897967834,0.26183509,656.55,655.8,1.88403563]
[1746897968035,0.26183509,656.55,655.81,0.70325292]
[1746897968235,0.30462728,656.54,655.82,1.88403563]
[1746897968431,0.30462728,656.54,655.83,0.70325292]
[1746897968636,0.30462728,656.54,655.84,1.88403563]
[1746897968938,0.30462728,656.54,655.85,0.70325292]
[1746897969132,0.30462728,656.54,655.86,0.70325292]
[1746897969335,0.30462728,656.54,655.87,0.70325292]
[1746897969531,0.30462728,656.54,655.88,0.70325292]
[1746897969731,0.30462728,656.54,655.89,0.70325292]
[1746897969930,0.30462728,656.54,655.9,1.88403563]
[1746897970129,0.30462728,656.54,655.91,1.88403563]
[1746897970331,0.30462728,656.54,655.92,1.88403563]
[1746897970631,0.30462728,656.54,655.93,0.70325292]
[1746897970841,0.30462728,656.54,655.94,0.70325292]
[1746897971042,0.30462728,656.54,655.95,0.70325292]
[1746897971242,0.30462728,656.54,655.96,0.70325292]
[1746897971438,0.30462728,656.54,655.97,0.70325292]
[1746897971738,0.30462728,656.54,655.98,1.88403563]
[1746897971942,0.30462728,656.54,655.99,0.70325292]
[1746897972238,0.30462728,656.54,656.0,1.88403563]
[1746897972545,0.30462728,656.54,656.01,0.70366894]